[Event "World Junior Chess Championship U20 2022"]
[White "Gaal, Zsoka"]
[Black "Atanasov, Anthony"]
[WhiteFideId "777765"]
[BlackFideId "2623897"]
[WhiteElo "2298"]
[BlackElo "2148"]
[Result "1/2-1/2"]
[Round "05"]
[TimeControl "5400+30"]
[Date "2022.10.15"]
[WhiteClock "0:03:16"]
[BlackClock "0:27:09"]

1. Nf3 {[%clk 1:30:57]}  Nf6 {[%clk 1:30:52]} 2. g3 {[%clk 1:31:22]}  g6 {[%clk 1:31:12]} 3. Bg2 {[%clk 1:31:46]}  Bg7 {[%clk 1:31:12]} 4. d4 {[%clk 1:32:07]}  O-O {[%clk 1:31:20]} 5. c4 {[%clk 1:32:32]}  d5 {[%clk 1:31:03]} 6. O-O {[%clk 1:32:54]}  Nc6 {[%clk 1:31:07]} 7. cxd5 {[%clk 1:33:18]}  Nxd5 {[%clk 1:31:31]} 8. e4 {[%clk 1:33:41]}  Nb6 {[%clk 1:31:57]} 9. d5 {[%clk 1:34:04]}  Na5 {[%clk 1:32:21]} 10. Qe1 {[%clk 1:34:26]}  Nac4 {[%clk 1:32:45]} 11. Nc3 {[%clk 1:34:50]}  e6 {[%clk 1:31:45]} 12. Bg5 {[%clk 1:34:06]}  f6 {[%clk 1:31:16]} 13. Bc1 {[%clk 1:34:28]}  exd5 {[%clk 1:28:32]} 14. exd5 {[%clk 1:34:48]}  Re8 {[%clk 1:23:13]} 15. Qd1 {[%clk 1:34:56]}  Bg4 {[%clk 1:14:19]} 16. h3 {[%clk 1:28:51]}  Bxf3 {[%clk 1:14:29]} 17. Bxf3 {[%clk 1:28:52]}  f5 {[%clk 1:14:21]} 18. Qb3 {[%clk 1:22:05]}  Kh8 {[%clk 1:04:48]} 19. a4 {[%clk 1:17:23]}  a5 {[%clk 1:03:26]} 20. h4 {[%clk 1:14:19]}  h6 {[%clk 0:56:03]} 21. Bg2 {[%clk 1:03:45]}  Rc8 {[%clk 0:42:20]} 22. Nb5 {[%clk 0:55:27]}  Qf6 {[%clk 0:33:26]} 23. Rb1 {[%clk 0:51:15]}  Re7 {[%clk 0:27:03]} 24. Qc2 {[%clk 0:43:36]}  c6 {[%clk 0:22:03]} 25. dxc6 {[%clk 0:41:57]}  bxc6 {[%clk 0:22:31]} 26. Na3 {[%clk 0:41:30]}  Qe6 {[%clk 0:18:04]} 27. Nxc4 {[%clk 0:38:56]}  Qxc4 {[%clk 0:18:05]} 28. Qxc4 {[%clk 0:38:49]}  Nxc4 {[%clk 0:18:33]} 29. b3 {[%clk 0:38:45]}  Rb7 {[%clk 0:16:59]} 30. Bxh6 {[%clk 0:31:01]}  Bxh6 {[%clk 0:15:28]} 31. bxc4 {[%clk 0:31:22]}  Rb4 {[%clk 0:13:46]} 32. Rxb4 {[%clk 0:22:23]}  axb4 {[%clk 0:14:14]} 33. Rb1 {[%clk 0:21:08]}  Bd2 {[%clk 0:12:22]} 34. Kf1 {[%clk 0:20:22]}  Bc3 {[%clk 0:11:48]} 35. Bf3 {[%clk 0:10:39]}  Kg7 {[%clk 0:10:27]} 36. a5 {[%clk 0:09:04]}  Ra8 {[%clk 0:10:09]} 37. Bxc6 {[%clk 0:08:50]}  Rxa5 {[%clk 0:10:37]} 38. Bd5 {[%clk 0:08:29]}  Ra2 {[%clk 0:08:55]} 39. c5 {[%clk 0:06:30]}  Ra5 {[%clk 0:09:08]} 40. Ke2 {[%clk 0:06:30]}  Rxc5 {[%clk 0:09:32]} 41. Bb3 {[%clk 0:28:57]}  Re5+ {[%clk 0:36:18]} 42. Kf3 {[%clk 0:28:11]}  Ra5 {[%clk 0:32:54]} 43. Rd1 {[%clk 0:25:24]}  Ra3 {[%clk 0:31:09]} 44. Rb1 {[%clk 0:25:46]}  Kf6 {[%clk 0:31:30]} 45. Ke3 {[%clk 0:25:42]}  Ke5 {[%clk 0:31:25]} 46. f3 {[%clk 0:24:46]}  Bd4+ {[%clk 0:29:56]} 47. Ke2 {[%clk 0:24:24]}  Ra7 {[%clk 0:29:29]} 48. g4 {[%clk 0:18:16]}  Kf4 {[%clk 0:28:23]} 49. gxf5 {[%clk 0:17:19]}  gxf5 {[%clk 0:28:32]} 50. h5 {[%clk 0:09:57]}  Re7+ {[%clk 0:28:32]} 51. Kd3 {[%clk 0:10:20]}  Bc3 {[%clk 0:27:16]} 52. Bd5 {[%clk 0:08:57]}  Rd7 {[%clk 0:25:05]} 53. Kc4 {[%clk 0:09:18]}  Ke5 {[%clk 0:24:31]} 54. Rd1 {[%clk 0:08:25]}  Rc7+ {[%clk 0:24:45]} 55. Kb3 {[%clk 0:08:35]}  Rh7 {[%clk 0:25:10]} 56. Bc4 {[%clk 0:05:57]}  Rxh5 {[%clk 0:25:26]} 57. Rd5+ {[%clk 0:06:21]}  Kf4 {[%clk 0:25:42]} 58. Bd3 {[%clk 0:06:41]}  Rg5 {[%clk 0:24:53]} 59. Bc2 {[%clk 0:06:50]}  Be1 {[%clk 0:24:10]} 60. Rb5 {[%clk 0:06:30]}  Bd2 {[%clk 0:23:10]} 61. Rd5 {[%clk 0:05:54]}  Ke3 {[%clk 0:22:14]} 62. Rxf5 {[%clk 0:05:10]}  Rg7 {[%clk 0:22:32]} 63. Rd5 {[%clk 0:04:28]}  Rg8 {[%clk 0:18:18]} 64. Be4 {[%clk 0:04:35]}  Rc8 {[%clk 0:18:04]} 65. Rd3+ {[%clk 0:04:40]}  Ke2 {[%clk 0:18:32]} 66. Rd5 {[%clk 0:04:41]}  Rc7 {[%clk 0:18:37]} 67. Rd3 {[%clk 0:03:57]}  Ra7 {[%clk 0:18:06]} 68. Rd5 {[%clk 0:04:26]}  Ra3+ {[%clk 0:18:11]} 69. Kc4 {[%clk 0:04:39]}  Bc3 {[%clk 0:17:40]} 70. Rd8 {[%clk 0:03:26]}  Be1 {[%clk 0:17:47]} 71. Ra8 {[%clk 0:03:10]}  Re3 {[%clk 0:17:38]} 72. Ra2+ {[%clk 0:01:28]}  Bd2 {[%clk 0:17:51]} 73. Rxd2+ {[%clk 0:01:22]}  Kxd2 {[%clk 0:18:13]} 74. Kxb4 {[%clk 0:01:49]}  Rc3 {[%clk 0:18:27]} 75. Kb5 {[%clk 0:02:05]}  Ke3 {[%clk 0:18:48]} 76. Kb4 {[%clk 0:02:22]}  Kd4 {[%clk 0:19:07]} 77. Kb5 {[%clk 0:02:44]}  Rc4 {[%clk 0:19:21]} 78. Kb6 {[%clk 0:02:10]}  Rc5 {[%clk 0:19:44]} 79. Bc6 {[%clk 0:02:24]}  Re5 {[%clk 0:19:37]} 80. Be4 {[%clk 0:02:29]}  Kc4 {[%clk 0:19:51]} 81. Kc6 {[%clk 0:02:08]}  Re6+ {[%clk 0:20:14]} 82. Kd7 {[%clk 0:02:34]}  Rh6 {[%clk 0:20:10]} 83. Ke7 {[%clk 0:02:52]}  Kd4 {[%clk 0:20:33]} 84. Kf7 {[%clk 0:02:05]}  Ke5 {[%clk 0:20:47]} 85. Kg7 {[%clk 0:02:07]}  Rf6 {[%clk 0:20:53]} 86. Bb7 {[%clk 0:00:59]}  Kf5 {[%clk 0:20:49]} 87. Ba8 {[%clk 0:01:10]}  Rg6+ {[%clk 0:20:03]} 88. Kf7 {[%clk 0:01:26]}  Ra6 {[%clk 0:19:58]} 89. Be4+ {[%clk 0:01:51]}  Ke5 {[%clk 0:20:21]} 90. Kg7 {[%clk 0:02:09]}  Ra7+ {[%clk 0:19:25]} 91. Kg6 {[%clk 0:02:32]}  Rc7 {[%clk 0:19:52]} 92. Ba8 {[%clk 0:02:09]}  Rd7 {[%clk 0:19:57]} 93. Be4 {[%clk 0:02:17]}  Ra7 {[%clk 0:20:23]} 94. Bd3 {[%clk 0:02:30]}  Ra2 {[%clk 0:20:17]} 95. Be4 {[%clk 0:02:43]}  Rg2+ {[%clk 0:20:41]} 96. Kf7 {[%clk 0:03:06]}  Rg1 {[%clk 0:20:48]} 97. Bb7 {[%clk 0:03:24]}  Re1 {[%clk 0:20:50]} 98. Be4 {[%clk 0:03:42]}  Rh1 {[%clk 0:21:02]} 99. Bc6 {[%clk 0:03:38]}  Rh6 {[%clk 0:21:06]} 100. Be4 {[%clk 0:03:31]}  Rd6 {[%clk 0:21:25]} 101. Kg7 {[%clk 0:03:36]}  Rd7+ {[%clk 0:21:26]} 102. Kg6 {[%clk 0:04:00]}  Rc7 {[%clk 0:21:51]} 103. Ba8 {[%clk 0:02:58]}  Re7 {[%clk 0:22:09]} 104. Be4 {[%clk 0:03:16]}  Ra7 {[%clk 0:22:33]} 105. Bd3 {[%clk 0:03:11]}  Ra8 {[%clk 0:22:30]} 106. Be4 {[%clk 0:03:16]}  Rb8 {[%clk 0:22:42]} 107. Bd3 {[%clk 0:02:57]}  Ke6 {[%clk 0:22:38]} 108. Bf5+ {[%clk 0:03:12]}  Ke5 {[%clk 0:22:43]} 109. Bd3 {[%clk 0:03:13]}  Rf8 {[%clk 0:22:52]} 110. Be4 {[%clk 0:03:37]}  Ke6 {[%clk 0:23:12]} 111. Kg5 {[%clk 0:03:40]}  Rg8+ {[%clk 0:23:32]} 112. Kf4 {[%clk 0:04:04]}  Kf6 {[%clk 0:23:58]} 113. Bd5 {[%clk 0:04:14]}  Rd8 {[%clk 0:24:24]} 114. Be4 {[%clk 0:04:27]}  Rd4 {[%clk 0:24:46]} 115. Ke3 {[%clk 0:04:43]}  Rb4 {[%clk 0:25:11]} 116. Kf4 {[%clk 0:04:51]}  Ra4 {[%clk 0:25:38]} 117. Kg4 {[%clk 0:03:45]}  Ke5 {[%clk 0:26:05]} 118. Kg5 {[%clk 0:04:00]}  Ra6 {[%clk 0:26:31]} 119. Bd3 {[%clk 0:03:25]}  Ra2 {[%clk 0:26:53]} 120. Kg6 {[%clk 0:03:16]}  Kf4 {[%clk 0:27:09]} 1/2-1/2


[Site "http://www.chessbomb.com"]

[Event "World Junior Chess Championship U20 2022"]
[White "Stankovic, Dragan"]
[Black "Budisavljevic, Luka"]
[WhiteFideId "14408740"]
[BlackFideId "960047"]
[WhiteElo "2181"]
[BlackElo "2524"]
[Result "0-1"]
[Round "05"]
[TimeControl "5400+30"]
[Date "2022.10.15"]
[WhiteClock "0:00:47"]
[BlackClock "0:37:44"]

1. e4 {[%clk 1:30:57]}  e6 {[%clk 1:30:54]} 2. d4 {[%clk 1:30:57]}  d5 {[%clk 1:31:17]} 3. Bd3 {[%clk 1:31:38]}  dxe4 {[%clk 1:31:35]} 4. Bxe4 {[%clk 1:32:02]}  Nf6 {[%clk 1:32:00]} 5. Bf3 {[%clk 1:32:24]}  Be7 {[%clk 1:32:15]} 6. Ne2 {[%clk 1:32:41]}  O-O {[%clk 1:32:09]} 7. O-O {[%clk 1:32:42]}  c5 {[%clk 1:32:35]} 8. Be3 {[%clk 1:32:47]}  cxd4 {[%clk 1:32:31]} 9. Bxd4 {[%clk 1:30:34]}  Qc7 {[%clk 1:31:45]} 10. Nd2 {[%clk 1:27:06]}  Rd8 {[%clk 1:29:39]} 11. Bc3 {[%clk 1:26:38]}  Nc6 {[%clk 1:29:48]} 12. Qc1 {[%clk 1:24:43]}  Nd5 {[%clk 1:22:57]} 13. Bxd5 {[%clk 1:20:05]}  Rxd5 {[%clk 1:23:16]} 14. Nf3 {[%clk 1:17:48]}  e5 {[%clk 1:22:45]} 15. Rd1 {[%clk 1:11:18]}  Rxd1+ {[%clk 1:16:14]} 16. Qxd1 {[%clk 1:11:37]}  Be6 {[%clk 1:16:26]} 17. Ng3 {[%clk 1:09:25]}  f6 {[%clk 1:15:47]} 18. Qe2 {[%clk 1:05:20]}  Bf8 {[%clk 1:13:52]} 19. Rd1 {[%clk 0:55:06]}  Rc8 {[%clk 1:13:57]} 20. Qe4 {[%clk 0:48:21]}  Ne7 {[%clk 1:08:50]} 21. a3 {[%clk 0:41:25]}  Qc6 {[%clk 1:05:49]} 22. Qxc6 {[%clk 0:39:05]}  Rxc6 {[%clk 1:06:11]} 23. Rc1 {[%clk 0:37:36]}  Nd5 {[%clk 1:05:31]} 24. Bd2 {[%clk 0:37:16]}  Nb6 {[%clk 1:05:46]} 25. Ne2 {[%clk 0:23:25]}  Kf7 {[%clk 0:51:39]} 26. Kf1 {[%clk 0:17:24]}  Nc4 {[%clk 0:49:56]} 27. Bc3 {[%clk 0:15:59]}  Rb6 {[%clk 0:49:43]} 28. b3 {[%clk 0:07:53]}  Nxa3 {[%clk 0:49:56]} 29. Bd2 {[%clk 0:07:55]}  Bf5 {[%clk 0:47:57]} 30. Ne1 {[%clk 0:07:05]}  Nb5 {[%clk 0:48:02]} 31. Be3 {[%clk 0:06:51]}  Ra6 {[%clk 0:48:24]} 32. c4 {[%clk 0:06:07]}  Nc7 {[%clk 0:48:38]} 33. Nc3 {[%clk 0:05:19]}  Ra3 {[%clk 0:44:56]} 34. Nb5 {[%clk 0:05:19]}  Nxb5 {[%clk 0:45:20]} 35. cxb5 {[%clk 0:02:47]}  Ke6 {[%clk 0:44:34]} 36. Rc7 {[%clk 0:02:15]}  b6 {[%clk 0:42:49]} 37. Ke2 {[%clk 0:01:31]}  Kd6 {[%clk 0:38:06]} 38. Rc3 {[%clk 0:01:12]}  Kd7 {[%clk 0:37:31]} 39. Nd3 {[%clk 0:01:07]}  Ra5 {[%clk 0:37:30]} 40. b4 {[%clk 0:00:47]}  Rxb5 {[%clk 0:37:44]} 0-1


[Site "http://www.chessbomb.com"]

[Event "World Junior Chess Championship U20 2022"]
[White "Parkhov, Yair"]
[Black "Wartiovaara, Oliver"]
[WhiteFideId "2813408"]
[BlackFideId "513024"]
[WhiteElo "2484"]
[BlackElo "2297"]
[Result "1-0"]
[Round "05"]
[TimeControl "5400+30"]
[Date "2022.10.15"]
[WhiteClock "0:22:16"]
[BlackClock "0:34:33"]

1. c4 {[%clk 1:30:12]}  g6 {[%clk 1:30:52]} 2. e4 {[%clk 1:30:37]}  e5 {[%clk 1:31:17]} 3. Nf3 {[%clk 1:31:02]}  Bg7 {[%clk 1:31:42]} 4. d4 {[%clk 1:31:27]}  exd4 {[%clk 1:32:00]} 5. Nxd4 {[%clk 1:31:48]}  Nc6 {[%clk 1:31:18]} 6. Nxc6 {[%clk 1:26:44]}  bxc6 {[%clk 1:31:27]} 7. Nc3 {[%clk 1:27:33]}  Ne7 {[%clk 1:31:13]} 8. Be2 {[%clk 1:24:54]}  d6 {[%clk 1:30:52]} 9. O-O {[%clk 1:18:47]}  O-O {[%clk 1:31:08]} 10. Bg5 {[%clk 1:13:02]}  h6 {[%clk 1:26:49]} 11. Be3 {[%clk 1:04:02]}  Be6 {[%clk 1:21:05]} 12. Qd2 {[%clk 0:51:58]}  Kh7 {[%clk 1:21:17]} 13. Rad1 {[%clk 0:48:27]}  f5 {[%clk 1:12:12]} 14. c5 {[%clk 0:46:16]}  d5 {[%clk 1:08:02]} 15. e5 {[%clk 0:45:45]}  g5 {[%clk 1:07:10]} 16. f4 {[%clk 0:40:42]}  gxf4 {[%clk 1:07:00]} 17. Bd4 {[%clk 0:37:26]}  Ng6 {[%clk 1:03:09]} 18. Bh5 {[%clk 0:35:42]}  Nxe5 {[%clk 1:01:06]} 19. Qxf4 {[%clk 0:33:51]}  Ng6 {[%clk 0:50:44]} 20. Bxg6+ {[%clk 0:31:09]}  Kxg6 {[%clk 0:51:08]} 21. Ne2 {[%clk 0:30:42]}  Bxd4+ {[%clk 0:47:26]} 22. Nxd4 {[%clk 0:30:24]}  Bd7 {[%clk 0:47:21]} 23. Rf3 {[%clk 0:28:03]}  Kh7 {[%clk 0:47:06]} 24. Rh3 {[%clk 0:26:27]}  Rf6 {[%clk 0:47:18]} 25. Re1 {[%clk 0:23:26]}  Rb8 {[%clk 0:43:34]} 26. Qg5 {[%clk 0:21:50]}  Qf8 {[%clk 0:35:29]} 27. Re7+ {[%clk 0:22:01]}  Kh8 {[%clk 0:34:33]} 28. Rxd7 {[%clk 0:22:16]} 1-0


[Site "http://www.chessbomb.com"]

[Event "World Junior Chess Championship U20 2022"]
[White "Flores Quillas, Diego Saul Rodri"]
[Black "Ramoutar, Alan-Safar"]
[WhiteFideId "3822508"]
[BlackFideId "7704224"]
[WhiteElo "2291"]
[BlackElo "2449"]
[Result "0-1"]
[Round "05"]
[TimeControl "5400+30"]
[Date "2022.10.15"]
[WhiteClock "1:15:41"]
[BlackClock "0:22:10"]

1. e4 {[%clk 1:24:53]}  c6 {[%clk 1:30:13]} 2. d4 {[%clk 1:25:17]}  d5 {[%clk 1:30:32]} 3. Nc3 {[%clk 1:25:40]}  dxe4 {[%clk 1:30:47]} 4. Nxe4 {[%clk 1:26:05]}  Nf6 {[%clk 1:31:08]} 5. Nxf6+ {[%clk 1:26:31]}  exf6 {[%clk 1:31:31]} 6. c3 {[%clk 1:26:58]}  Bd6 {[%clk 1:31:51]} 7. Bd3 {[%clk 1:27:23]}  O-O {[%clk 1:32:13]} 8. Qc2 {[%clk 1:27:44]}  Re8+ {[%clk 1:32:13]} 9. Ne2 {[%clk 1:28:12]}  h5 {[%clk 1:32:48]} 10. O-O {[%clk 1:28:37]}  h4 {[%clk 1:32:57]} 11. Nf4 {[%clk 1:29:02]}  Qc7 {[%clk 1:33:18]} 12. g3 {[%clk 1:29:26]}  Nd7 {[%clk 1:33:38]} 13. Qd1 {[%clk 1:29:34]}  Nf8 {[%clk 1:33:58]} 14. Qh5 {[%clk 1:29:45]}  Qd7 {[%clk 1:34:11]} 15. a4 {[%clk 1:28:53]}  g5 {[%clk 0:58:10]} 16. Ng2 {[%clk 1:27:54]}  Qh3 {[%clk 0:55:30]} 17. Bxg5 {[%clk 1:26:35]}  hxg3 {[%clk 0:51:22]} 18. Qxh3 {[%clk 1:26:07]}  Bxh3 {[%clk 0:49:43]} 19. Bxf6 {[%clk 1:24:47]}  gxh2+ {[%clk 0:49:55]} 20. Kh1 {[%clk 1:25:10]}  Ng6 {[%clk 0:41:53]} 21. Bxg6 {[%clk 1:20:49]}  fxg6 {[%clk 0:41:56]} 22. Rae1 {[%clk 1:20:54]}  Rxe1 {[%clk 0:37:07]} 23. Rxe1 {[%clk 1:21:15]}  Rf8 {[%clk 0:37:25]} 24. Be7 {[%clk 1:15:23]}  Re8 {[%clk 0:26:48]} 25. Bxd6 {[%clk 1:15:27]}  Bxg2+ {[%clk 0:27:10]} 26. Kxh2 {[%clk 1:15:51]}  Rxe1 {[%clk 0:27:29]} 27. Kxg2 {[%clk 1:16:19]}  Kf7 {[%clk 0:27:13]} 28. Bb4 {[%clk 1:14:53]}  Ke6 {[%clk 0:26:02]} 29. Kf3 {[%clk 1:14:45]}  Rb1 {[%clk 0:24:45]} 30. Ba3 {[%clk 1:15:03]}  Kd5 {[%clk 0:24:58]} 31. Kf4 {[%clk 1:15:11]}  Rf1 {[%clk 0:23:30]} 32. Kg5 {[%clk 1:14:23]}  Rxf2 {[%clk 0:23:34]} 33. Kxg6 {[%clk 1:14:50]}  a5 {[%clk 0:21:52]} 34. Kg5 {[%clk 1:15:00]}  Kc4 {[%clk 0:22:02]} 35. Kg4 {[%clk 1:15:21]}  Kb3 {[%clk 0:22:12]} 36. Kg3 {[%clk 1:15:41]}  Rf7 {[%clk 0:22:10]} 0-1


[Site "http://www.chessbomb.com"]

[Event "World Junior Chess Championship U20 2022"]
[White "Neelash, Saha"]
[Black "Oye-Stromberg, Alexander"]
[WhiteFideId "5094160"]
[BlackFideId "1525999"]
[WhiteElo "2446"]
[BlackElo "2233"]
[Result "1/2-1/2"]
[Round "05"]
[TimeControl "5400+30"]
[Date "2022.10.15"]
[WhiteClock "0:22:44"]
[BlackClock "0:05:02"]

1. d4 {[%clk 1:29:21]}  Nf6 {[%clk 1:30:25]} 2. c4 {[%clk 1:29:46]}  e6 {[%clk 1:30:40]} 3. Nf3 {[%clk 1:30:09]}  d5 {[%clk 1:30:51]} 4. g3 {[%clk 1:30:34]}  Be7 {[%clk 1:30:48]} 5. Bg2 {[%clk 1:30:59]}  O-O {[%clk 1:31:08]} 6. O-O {[%clk 1:31:25]}  dxc4 {[%clk 1:30:56]} 7. Qc2 {[%clk 1:31:51]}  a6 {[%clk 1:30:42]} 8. a4 {[%clk 1:32:16]}  Bd7 {[%clk 1:30:31]} 9. Qxc4 {[%clk 1:32:38]}  Bc6 {[%clk 1:30:31]} 10. Bg5 {[%clk 1:32:50]}  Nbd7 {[%clk 1:30:17]} 11. Nc3 {[%clk 1:32:39]}  h6 {[%clk 1:30:07]} 12. Bxf6 {[%clk 1:32:54]}  Nxf6 {[%clk 1:30:18]} 13. Rfd1 {[%clk 1:29:55]}  a5 {[%clk 1:29:01]} 14. Ne5 {[%clk 1:25:07]}  Bxg2 {[%clk 1:28:16]} 15. Kxg2 {[%clk 1:25:32]}  c6 {[%clk 1:26:42]} 16. e4 {[%clk 1:25:28]}  Qc7 {[%clk 1:17:48]} 17. f3 {[%clk 1:24:22]}  Rfd8 {[%clk 1:16:15]} 18. Rac1 {[%clk 1:22:42]}  Rac8 {[%clk 1:16:28]} 19. Ne2 {[%clk 1:21:53]}  Nd7 {[%clk 1:04:30]} 20. Nd3 {[%clk 1:13:16]}  Bf8 {[%clk 1:03:39]} 21. Ndf4 {[%clk 1:10:31]}  Nf6 {[%clk 0:51:34]} 22. Qb3 {[%clk 1:07:13]}  Qb8 {[%clk 0:45:51]} 23. Nd3 {[%clk 1:06:57]}  Qc7 {[%clk 0:45:45]} 24. Ne5 {[%clk 1:06:14]}  Bd6 {[%clk 0:42:31]} 25. Nc4 {[%clk 1:05:58]}  Bb4 {[%clk 0:38:28]} 26. Nf4 {[%clk 1:03:40]}  Qe7 {[%clk 0:33:20]} 27. Qe3 {[%clk 0:52:32]}  Nd7 {[%clk 0:26:47]} 28. Nd3 {[%clk 0:50:09]}  b5 {[%clk 0:14:50]} 29. Nce5 {[%clk 0:49:20]}  Nxe5 {[%clk 0:15:16]} 30. Nxe5 {[%clk 0:49:45]}  Qb7 {[%clk 0:15:28]} 31. Qb3 {[%clk 0:48:30]}  bxa4 {[%clk 0:14:46]} 32. Qxa4 {[%clk 0:48:46]}  c5 {[%clk 0:15:10]} 33. dxc5 {[%clk 0:22:47]}  Rxd1 {[%clk 0:15:27]} 34. Rxd1 {[%clk 0:22:39]}  Bxc5 {[%clk 0:14:54]} 35. Nd3 {[%clk 0:22:56]}  Bb4 {[%clk 0:13:37]} 36. Kh3 {[%clk 0:22:06]}  Rd8 {[%clk 0:10:50]} 37. Nc5 {[%clk 0:18:49]}  Qc8 {[%clk 0:10:58]} 38. Nd7 {[%clk 0:18:35]}  Qc7 {[%clk 0:09:52]} 39. Qb5 {[%clk 0:17:15]}  Be7 {[%clk 0:09:11]} 40. Rd3 {[%clk 0:15:37]}  Bd6 {[%clk 0:02:17]} 41. e5 {[%clk 0:14:39]}  Be7 {[%clk 0:29:58]} 42. Rd4 {[%clk 0:40:25]}  Qa7 {[%clk 0:13:03]} 43. Qd3 {[%clk 0:37:30]}  Qc7 {[%clk 0:11:43]} 44. b3 {[%clk 0:36:45]}  Qa7 {[%clk 0:11:00]} 45. f4 {[%clk 0:34:57]}  Qc7 {[%clk 0:08:40]} 46. g4 {[%clk 0:31:55]}  Qc1 {[%clk 0:05:11]} 47. Nf6+ {[%clk 0:27:32]}  Bxf6 {[%clk 0:05:30]} 48. Rxd8+ {[%clk 0:27:53]}  Bxd8 {[%clk 0:05:56]} 49. Qxd8+ {[%clk 0:28:18]}  Kh7 {[%clk 0:06:21]} 50. Qd3+ {[%clk 0:28:33]}  g6 {[%clk 0:06:03]} 51. f5 {[%clk 0:28:30]}  exf5 {[%clk 0:05:12]} 52. gxf5 {[%clk 0:28:48]}  Qg5 {[%clk 0:04:36]} 53. fxg6+ {[%clk 0:27:11]}  Qxg6 {[%clk 0:05:02]} 54. Qd5 {[%clk 0:22:44]} 1/2-1/2


[Site "http://www.chessbomb.com"]

[Event "World Junior Chess Championship U20 2022"]
[White "Djurovic, Peko"]
[Black "Boyer, Mahel"]
[WhiteFideId "16503902"]
[BlackFideId "45102422"]
[WhiteElo "2084"]
[BlackElo "2445"]
[Result "0-1"]
[Round "05"]
[TimeControl "5400+30"]
[Date "2022.10.15"]
[WhiteClock "0:02:10"]
[BlackClock "0:28:07"]

1. e4 {[%clk 1:30:56]}  c5 {[%clk 1:26:11]} 2. Nf3 {[%clk 1:31:16]}  a6 {[%clk 1:26:26]} 3. Nc3 {[%clk 1:30:42]}  e6 {[%clk 1:25:36]} 4. d4 {[%clk 1:30:46]}  cxd4 {[%clk 1:25:02]} 5. Nxd4 {[%clk 1:31:13]}  Qc7 {[%clk 1:21:38]} 6. Qf3 {[%clk 1:20:26]}  Nf6 {[%clk 1:16:40]} 7. Qg3 {[%clk 1:19:29]}  d6 {[%clk 1:14:59]} 8. Be3 {[%clk 1:18:18]}  b5 {[%clk 1:14:36]} 9. a3 {[%clk 1:02:04]}  Bb7 {[%clk 1:14:11]} 10. f3 {[%clk 1:02:21]}  Nbd7 {[%clk 1:13:57]} 11. O-O-O {[%clk 1:02:41]}  Rc8 {[%clk 1:13:21]} 12. Kb1 {[%clk 1:02:51]}  d5 {[%clk 1:05:31]} 13. exd5 {[%clk 0:57:51]}  Nxd5 {[%clk 1:04:24]} 14. Nxd5 {[%clk 0:58:13]}  Bxd5 {[%clk 1:04:13]} 15. Bf4 {[%clk 0:51:39]}  Qb6 {[%clk 1:03:35]} 16. c3 {[%clk 0:43:13]}  Nf6 {[%clk 1:03:26]} 17. Be5 {[%clk 0:40:14]}  Nd7 {[%clk 0:58:01]} 18. Bf4 {[%clk 0:39:12]}  f6 {[%clk 0:53:56]} 19. Nf5 {[%clk 0:23:05]}  g6 {[%clk 0:46:48]} 20. Nd6+ {[%clk 0:20:12]}  Bxd6 {[%clk 0:47:12]} 21. Bxd6 {[%clk 0:20:40]}  Qc6 {[%clk 0:43:21]} 22. Bd3 {[%clk 0:13:54]}  Kf7 {[%clk 0:38:11]} 23. Rhe1 {[%clk 0:12:46]}  Nb6 {[%clk 0:38:03]} 24. Bf4 {[%clk 0:09:45]}  a5 {[%clk 0:33:51]} 25. Be4 {[%clk 0:07:26]}  Qc4 {[%clk 0:33:54]} 26. Bxd5 {[%clk 0:07:48]}  Nxd5 {[%clk 0:34:21]} 27. Bc1 {[%clk 0:05:29]}  b4 {[%clk 0:27:13]} 28. Qd6 {[%clk 0:05:29]}  Rhe8 {[%clk 0:27:40]} 29. Rd4 {[%clk 0:03:00]}  Qb3 {[%clk 0:27:24]} 30. Ka1 {[%clk 0:03:24]}  Rcd8 {[%clk 0:27:03]} 31. Qc6 {[%clk 0:03:15]}  bxc3 {[%clk 0:27:17]} 32. Rde4 {[%clk 0:03:35]}  Rb8 {[%clk 0:26:37]} 33. R1e2 {[%clk 0:02:34]}  Rb6 {[%clk 0:26:53]} 34. Qd7+ {[%clk 0:01:35]}  Re7 {[%clk 0:27:22]} 35. Qd8 {[%clk 0:01:55]}  cxb2+ {[%clk 0:27:40]} 36. Bxb2 {[%clk 0:02:10]}  Qd1+ {[%clk 0:28:07]} 0-1


[Site "http://www.chessbomb.com"]

[Event "World Junior Chess Championship U20 2022"]
[White "Harshavardhan, G B"]
[Black "Casadio, Niccolo`"]
[WhiteFideId "25059009"]
[BlackFideId "2827951"]
[WhiteElo "2433"]
[BlackElo "2201"]
[Result "1-0"]
[Round "05"]
[TimeControl "5400+30"]
[Date "2022.10.15"]
[WhiteClock "0:53:26"]
[BlackClock "0:49:54"]

1. d4 {[%clk 1:30:24]}  e6 {[%clk 1:30:55]} 2. c4 {[%clk 1:30:32]}  Nf6 {[%clk 1:31:20]} 3. Nf3 {[%clk 1:30:37]}  d5 {[%clk 1:31:41]} 4. Nc3 {[%clk 1:30:54]}  Be7 {[%clk 1:32:05]} 5. Bf4 {[%clk 1:30:54]}  O-O {[%clk 1:32:27]} 6. e3 {[%clk 1:31:27]}  b6 {[%clk 1:32:52]} 7. Bd3 {[%clk 1:31:27]}  dxc4 {[%clk 1:32:58]} 8. Bxc4 {[%clk 1:31:44]}  Bb7 {[%clk 1:33:22]} 9. O-O {[%clk 1:31:47]}  a6 {[%clk 1:24:07]} 10. Rc1 {[%clk 1:29:16]}  Nbd7 {[%clk 1:24:08]} 11. d5 {[%clk 1:27:21]}  exd5 {[%clk 1:20:37]} 12. Nxd5 {[%clk 1:27:35]}  Bxd5 {[%clk 1:13:25]} 13. Bxd5 {[%clk 1:27:47]}  Nxd5 {[%clk 1:13:43]} 14. Qxd5 {[%clk 1:27:52]}  Nc5 {[%clk 1:13:36]} 15. Qc6 {[%clk 1:25:36]}  Rc8 {[%clk 1:12:37]} 16. Rfd1 {[%clk 1:21:51]}  Qe8 {[%clk 1:12:46]} 17. Nd4 {[%clk 1:21:51]}  Bf6 {[%clk 1:11:06]} 18. b4 {[%clk 1:12:45]}  Bxd4 {[%clk 1:11:02]} 19. Qxe8 {[%clk 1:13:04]}  Rfxe8 {[%clk 1:11:26]} 20. exd4 {[%clk 1:13:25]}  Ne6 {[%clk 1:11:46]} 21. Be3 {[%clk 1:13:45]}  f5 {[%clk 1:07:20]} 22. d5 {[%clk 1:05:35]}  f4 {[%clk 1:03:25]} 23. Bxb6 {[%clk 1:04:40]}  cxb6 {[%clk 1:03:51]} 24. Rxc8 {[%clk 1:04:57]}  Rxc8 {[%clk 1:04:17]} 25. dxe6 {[%clk 1:05:14]}  Kf8 {[%clk 1:04:41]} 26. Kf1 {[%clk 1:05:04]}  Ke7 {[%clk 1:04:59]} 27. Rd7+ {[%clk 1:05:19]}  Kxe6 {[%clk 1:03:20]} 28. Rxg7 {[%clk 1:05:38]}  Rc1+ {[%clk 1:02:29]} 29. Ke2 {[%clk 1:05:57]}  Rc2+ {[%clk 1:02:51]} 30. Kf3 {[%clk 1:06:15]}  Rxa2 {[%clk 1:02:20]} 31. Rxh7 {[%clk 1:06:21]}  b5 {[%clk 0:59:54]} 32. Rh4 {[%clk 1:01:38]}  a5 {[%clk 0:55:03]} 33. bxa5 {[%clk 1:00:05]}  Ra3+ {[%clk 0:54:25]} 34. Ke4 {[%clk 1:00:11]}  Ra4+ {[%clk 0:53:56]} 35. Kd3 {[%clk 1:00:25]}  Ra3+ {[%clk 0:53:48]} 36. Kd4 {[%clk 0:57:10]}  f3 {[%clk 0:52:46]} 37. g4 {[%clk 0:54:56]}  Rxa5 {[%clk 0:52:06]} 38. Rh6+ {[%clk 0:52:07]}  Kf7 {[%clk 0:52:28]} 39. Ke4 {[%clk 0:52:20]}  Ra3 {[%clk 0:52:06]} 40. Rb6 {[%clk 0:52:38]}  Rb3 {[%clk 0:52:14]} 41. h4 {[%clk 0:52:52]}  b4 {[%clk 0:51:02]} 42. h5 {[%clk 0:52:41]}  Rb1 {[%clk 0:49:43]} 43. Kxf3 {[%clk 0:52:34]}  b3 {[%clk 0:50:10]} 44. Kf4 {[%clk 0:52:29]}  b2 {[%clk 0:50:21]} 45. Kg5 {[%clk 0:52:47]}  Kg8 {[%clk 0:49:04]} 46. Rb7 {[%clk 0:53:06]}  Kf8 {[%clk 0:49:29]} 47. h6 {[%clk 0:53:24]}  Kg8 {[%clk 0:49:54]} 48. h7+ {[%clk 0:53:26]} 1-0


[Site "http://www.chessbomb.com"]